bitfinex-derivatives/quotes_ETHF0:USTF0_20250803
["timestamp","ask_amount","ask_price","bid_price","bid_amount"]
[1754235556224,0.4968,3459.0,3458.9,2.5036]
[1754235556628,0.8537,3459.0,3458.9,2.5036]
[1754235556824,3.2078,3459.1,3459.0,2.5036]
[1754235557025,3.2078,3459.1,3459.0,22.5636]
[1754235557422,3.2078,3459.1,3459.0,2.5036]
[1754235557628,4.0615,3459.1,3459.0,22.5636]
[1754235558025,5.175,3459.1,3459.0,2.5036]
[1754235558231,5.175,3459.1,3459.0,22.5636]
[1754235558529,5.175,3459.1,3459.0,2.5036]
[1754235558833,5.6742,3459.1,3459.0,21.2092]
[1754235559932,5.175,3459.1,3459.0,22.5636]
[1754235560827,5.6742,3459.1,3459.0,1.6255]
[1754235561034,5.6742,3459.1,3459.0,21.6855]
[1754235562031,5.175,3459.1,3459.0,2.5036]
[1754235562231,5.175,3459.1,3459.0,22.5636]
[1754235562432,3.2078,3459.1,3459.0,22.5636]
[1754235563432,0.57815,3459.4,3459.0,21.64091]
[1754235563636,0.57814,3459.5,3459.3,0.674]
[1754235563934,2.07984,3459.5,3459.4,22.5636]
[1754235564135,3.2078,3459.6,3459.5,2.5036]
[1754235565437,1.8537,3460.0,3459.9,1.0027]
[1754235565740,1.8537,3460.0,3459.9,22.5626]
[1754235566235,2.5017,3460.0,3459.9,22.5626]
[1754235566439,2.9672,3460.0,3459.9,22.5626]
[1754235567940,2.5017,3460.0,3459.9,22.5626]
[1754235569034,1.648,3460.0,3459.9,22.5626]
[1754235569434,2.0049,3460.0,3459.9,22.5626]
[1754235569637,2.9672,3460.0,3459.9,22.5626]
[1754235570237,3.4664,3460.0,3459.9,22.5626]
[1754235571346,2.9672,3460.0,3459.9,22.5626]
[1754235572647,6.24265569,3460.0,3459.9,22.5626]
[1754235572848,5.77715569,3460.0,3459.9,22.5626]
[1754235573150,1.0,3460.0,3459.9,22.5626]
[1754235576048,3.77225569,3460.8,3460.5,0.57795]
[1754235576259,0.57791,3460.8,3460.7,2.5036]
[1754235576550,0.648,3460.9,3460.8,2.5036]
[1754235576850,2.54509,3461.0,3460.9,2.5036]
[1754235577544,1.5017,3461.1,3461.0,2.1905]
[1754235577852,1.9672,3461.1,3461.0,22.5566]
[1754235578043,2.4664,3461.1,3461.0,22.5566]
[1754235578448,0.3569,3461.2,3461.1,1.8618]
[1754235578642,0.8537,3461.2,3461.1,2.5036]
[1754235579055,1.9672,3461.2,3461.1,2.5036]
[1754235579742,2.4664,3461.2,3461.1,2.5036]
[1754235583751,2.5159,3460.8,3460.7,0.3339]
[1754235583945,1.4931,3460.7,3460.3,0.5143]
[1754235584151,5.79135569,3460.4,3460.2,3.2078]
[1754235584360,5.79135569,3460.4,3460.3,20.047]
[1754235584953,3.09389,3460.3,3460.2,0.3339]
[1754235585264,3.09389,3460.3,3460.2,20.8942]
[1754235585454,2.5159,3460.3,3460.2,20.8942]
[1754235586056,2.5159,3460.3,3460.2,22.0029]
[1754235586256,2.5159,3460.3,3460.2,22.5332]
[1754235586560,3.6724,3460.6,3460.3,2.4872]
[1754235586762,4.7404,3460.6,3460.5,2.4872]
[1754235587065,4.7404,3460.6,3460.5,22.0019]
[1754235587263,5.7237,3460.6,3460.5,22.0019]
[1754235587563,5.7237,3460.6,3460.5,20.045]
[1754235588353,0.6969,3460.3,3460.2,0.6602]
[1754235588560,6.36935569,3460.3,3460.2,21.2023]
[1754235589159,6.36935569,3460.3,3459.9,42.6106]
[1754235589464,6.36935569,3460.3,3460.0,20.8932]
[1754235589465,2.5159,3460.1,3460.0,20.8932]
[1754235589853,2.5159,3460.1,3460.0,0.8482]
[1754235590053,3.09394,3460.1,3459.9,41.623]
[1754235590254,1.44451,3461.5,3459.7,3.2078]
[1754235590255,4.4718233,3462.1,3460.2,1.44503]
[1754235590455,1.44409,3462.5,3461.2,3.2078]
[1754235590764,2.5159,3461.3,3461.2,20.4765]
[1754235591363,2.5159,3461.3,3461.2,21.0519]
[1754235592360,0.5098,3462.0,3461.9,0.3263]
[1754235592567,0.8447,3462.0,3461.9,4.1377]
[1754235593168,0.8447,3462.0,3461.9,0.9299]
[1754235594264,2.5159,3462.0,3461.9,0.3263]
[1754235594467,3.28702151,3462.0,3461.9,0.3263]
[1754235594660,2.5159,3462.0,3461.9,0.8848]
[1754235595265,2.5159,3462.0,3461.9,0.9299]
[1754235595666,2.0513,3462.0,3461.9,0.9299]
[1754235595863,0.5187,3462.4,3461.9,4.1377]
[1754235596063,3.2078,3462.7,3462.5,0.3714]
[1754235596064,2.5159,3462.6,3462.5,0.3714]
[1754235596266,2.5159,3462.6,3462.5,0.9299]
[1754235597371,0.3349,3462.6,3462.5,0.94903]
[1754235597566,1.9972,3462.6,3462.5,0.3714]
[1754235597768,2.5159,3462.6,3462.5,0.3714]
[1754235598067,2.5159,3462.6,3462.5,0.9299]
[1754235598770,2.5159,3462.6,3462.5,20.4635]
[1754235599067,1.029371,3465.0,3464.7,0.57726]
[1754235599370,5.51e-06,3466.1,3466.0,0.57704]
[1754235599566,3.2078,3466.9,3466.0,62.68503]
[1754235599759,5.91595536,3466.7,3465.8,3.2078]
[1754235599965,1.4931,3466.4,3465.8,3.2078]
[1754235600272,1.4931,3466.3,3465.9,5.634]
[1754235600474,1.0285,3466.2,3466.0,3.78484]
[1754235600665,1.0285,3466.2,3465.0,41.599]
[1754235600666,5.237171,3466.2,3465.6,3.2078]
[1754235600972,1.4931,3465.8,3465.1,3.2078]
[1754235601270,1.0285,3465.7,3465.5,3.2078]
[1754235601464,1.4931,3465.9,3465.5,3.2078]
[1754235601661,0.57704,3466.0,3465.5,3.2078]
[1754235601866,2.029371,3465.6,3464.9,3.2078]
[1754235602060,0.5098,3465.4,3464.9,3.2078]
[1754235602272,0.5098,3465.2,3464.9,3.2078]
[1754235602472,1.0285,3465.0,3464.9,3.2078]
[1754235603069,1.4931,3465.0,3464.9,3.2078]
[1754235603271,1.08706,3464.7,3464.0,3.2078]
[1754235603570,0.5098,3464.2,3463.6,3.2078]
[1754235603773,1.4931,3464.0,3463.6,3.2078]
[1754235604074,0.5098,3463.8,3463.6,3.2078]
[1754235604278,1.4931,3463.7,3463.6,3.2078]
[1754235604471,1.4931,3463.7,3463.6,3.56168154]
[1754235604675,1.4931,3463.7,3463.6,3.56168519]
[1754235605073,1.4931,3463.7,3463.6,0.35388519]
[1754235606172,1.4931,3463.7,3463.1,3.2078]
[1754235606173,0.57748,3463.4,3463.1,3.2078]
[1754235606372,1.4931,3463.3,3463.2,0.35387676]
[1754235607680,0.57751,3463.2,3462.9,1.03957608]
[1754235607878,1.4931,3463.1,3462.9,1.03957608]
[1754235608074,0.9833,3463.0,3462.9,1.03957608]
[1754235608379,1.4931,3463.0,3462.9,1.03957608]
[1754235609981,1.08734,3463.0,3462.9,1.03957608]
[1754235610188,4.100011,3463.0,3462.9,1.03957608]
[1754235611280,3.522471,3463.0,3462.9,1.03957608]
[1754235611480,0.5098,3463.0,3462.9,1.03957608]
[1754235611682,0.5098,3463.0,3462.9,1.39337608]
[1754235612581,0.5098,3463.1,3463.0,0.3538]
[1754235612781,0.57748,3463.4,3463.0,0.3538]
[1754235613080,0.5098,3463.1,3463.0,0.3538]
[1754235613673,1.1114,3463.1,3463.0,0.3538]
[1754235613883,0.57754,3463.0,3462.9,1.03957608]
[1754235614081,4.233111,3463.0,3462.9,1.03957608]
[1754235614487,0.57758,3462.8,3462.7,3.2078]
[1754235614679,0.57763,3462.5,3462.2,3.2078]
[1754235614875,1.1551,3462.4,3462.2,3.2078]
[1754235615081,1.6262,3462.3,3462.2,3.2078]
[1754235615279,2.607041,3462.3,3461.8,3.6627]
[1754235615481,2.029371,3462.2,3461.8,3.6627]
[1754235615676,0.5535,3461.9,3461.8,3.6788]
[1754235615880,8.65915536,3462.6,3461.9,1.5182]
[1754235615881,3.2078,3462.6,3461.9,1.5182]
[1754235616085,5.237171,3462.6,3462.0,1.5182]
[1754235616385,5.237171,3462.6,3462.2,0.57767]
[1754235616684,0.5535,3462.8,3462.4,0.57764]
[1754235616879,0.5535,3462.8,3462.6,1.5182]
[1754235617079,0.5535,3462.8,3462.7,1.5182]
[1754235617280,1.1551,3462.8,3462.7,0.9259]
[1754235618586,1.6262,3462.8,3462.7,0.9259]
[1754235620880,1.1551,3463.3,3462.7,1.5182]
[1754235621081,0.5535,3462.8,3462.7,0.9259]
[1754235621385,1.6262,3462.8,3462.7,0.9259]
[1754235622079,1.44343,3464.1,3462.4,0.4549]
[1754235622080,1.6262,3462.6,3462.4,0.4549]
[1754235622288,1.1551,3462.5,3462.4,0.9259]
[1754235622477,1.6262,3462.5,3462.4,0.4549]
[1754235622785,1.6262,3462.5,3462.3,3.2078]
[1754235622980,1.6262,3462.4,3462.3,3.2078]
[1754235623388,1.6262,3462.4,3462.3,3.6627]
[1754235623784,1.6262,3462.4,3462.3,4.1337]
[1754235625783,1.0246,3462.4,3462.3,4.1337]
[1754235625991,0.5535,3462.4,3462.3,4.726]
[1754235626184,0.5535,3462.4,3462.3,5.821]
[1754235626384,2.2352,3462.4,3462.3,5.821]
[1754235626694,2.7063,3462.4,3462.3,5.821]
[1754235627188,4.735671,3462.4,3462.3,3.2078]
[1754235628886,1.0801,3462.0,3461.9,0.8444]
[1754235629191,1.0801,3462.0,3461.9,1.566]
[1754235629192,2.7063,3462.0,3461.9,1.566]
[1754235629691,2.7063,3462.0,3461.9,2.0209]
[1754235632196,2.7063,3462.0,3461.9,0.3734]
[1754235633792,2.7063,3462.0,3461.9,0.8283]
[1754235633991,2.7063,3462.0,3461.9,1.1525]
[1754235635589,2.7063,3462.0,3461.9,1.5499]
[1754235636694,2.7063,3462.0,3461.9,0.3734]
[1754235637696,2.7063,3462.0,3461.9,0.6976]
[1754235637895,2.7063,3462.0,3461.9,1.5499]
[1754235639592,2.7063,3462.0,3461.9,0.6976]
[1754235639989,2.7063,3462.0,3461.9,1.5499]
[1754235640591,2.7063,3462.0,3461.9,2.0209]
[1754235642798,1.6262,3462.5,3462.1,0.57769]
[1754235642990,1.6262,3462.5,3462.1,2.6132]
[1754235642991,2.2352,3462.2,3462.1,2.6132]
[1754235643190,3.2078,3462.6,3462.1,0.471]
[1754235643385,2.1528,3462.9,3462.8,1.095]
[1754235643595,0.7541,3462.6,3462.5,1.3328]
[1754235643895,2.6909,3462.6,3462.5,2.5703]
[1754235644994,2.6909,3462.6,3462.3,3.78546]
[1754235644995,0.7541,3462.0,3461.9,3.5774]
[1754235645291,2.6909,3462.0,3461.9,3.8907]
[1754235645794,2.2252,3462.0,3461.9,5.7842]
[1754235646093,2.6909,3462.0,3461.9,5.7821]
[1754235646290,1.1438,3462.1,3462.0,1.0608]
[1754235646487,1.1438,3462.1,3462.0,2.5743]
[1754235646691,2.2252,3462.1,3462.0,1.9759]
[1754235646894,2.6909,3462.1,3462.0,1.9759]
[1754235648099,3.110771,3462.1,3461.9,3.2078]
[1754235648298,4.720271,3462.0,3461.9,3.2078]
[1754235648494,2.6909,3462.0,3461.9,4.3504]
[1754235648694,2.6909,3462.0,3461.9,4.7213]
[1754235649716,2.6909,3462.0,3461.9,5.1837]
[1754235650493,2.6909,3462.0,3461.9,1.9759]
[1754235651698,2.6909,3462.0,3461.9,2.5743]
[1754235651699,2.2252,3462.0,3461.9,2.5743]
[1754235652493,2.6909,3462.0,3461.9,1.9759]
[1754235654501,2.6909,3462.0,3461.9,2.5743]
[1754235655302,0.5941,3462.2,3462.1,0.6829]
[1754235655496,0.5941,3462.2,3462.1,2.5743]
[1754235655698,2.2252,3462.2,3462.1,2.5743]
[1754235656198,2.6909,3462.2,3462.1,2.5743]
[1754235656706,2.2252,3462.5,3462.4,3.15193]
[1754235657399,2.6909,3462.5,3462.4,3.15193]
[1754235657705,2.6909,3462.5,3462.4,1.5135]
[1754235658401,2.6909,3462.5,3462.4,1.9759]
[1754235658801,2.6909,3462.5,3462.4,1.5135]
[1754235658990,2.6909,3462.5,3462.4,1.9759]
[1754235659701,2.6909,3462.5,3462.3,0.57766]
[1754235659702,0.5497,3462.8,3462.7,0.6829]
[1754235659897,2.6909,3462.8,3462.7,2.5743]
[1754235660095,4.720271,3462.8,3462.7,2.5743]
[1754235660297,4.720271,3462.8,3462.7,1.9759]
[1754235660697,1.1438,3462.9,3462.8,0.4624]
[1754235661002,3.566071,3462.9,3462.8,2.5743]
[1754235661191,4.254571,3462.9,3462.8,2.5743]
[1754235661501,4.720271,3462.9,3462.8,2.5743]
[1754235661703,4.720271,3462.9,3462.8,1.9759]
[1754235661891,4.720271,3462.9,3462.8,1.5135]
[1754235662098,4.720271,3462.9,3462.8,1.9759]
[1754235671310,1.1438,3463.2,3462.9,0.4597]
[1754235671610,1.1438,3463.6,3463.2,1.0538]
[1754235671907,2.0968,3463.5,3463.4,1.6522]
[1754235672101,2.0968,3463.5,3463.4,2.5743]
[1754235672503,2.6909,3463.5,3463.4,2.5743]
[1754235672702,3.2078,3464.3,3464.1,0.57735]
[1754235672909,4.1504,3464.3,3464.2,2.5743]
[1754235673302,5.433,3464.3,3464.2,2.5743]
[1754235674311,5.919,3464.3,3464.2,2.5743]
[1754235674806,1.0375,3463.8,3463.7,1.63482]
[1754235675004,1.0375,3463.8,3463.7,2.11572]
[1754235675212,2.6554,3463.8,3463.7,2.55962]
[1754235675410,2.6554,3463.8,3463.7,1.9822]
[1754235676310,8.65230881,3464.7,3463.4,5.28658]
[1754235676311,1.0375,3463.5,3463.4,5.28658]
[1754235676511,0.486,3463.7,3463.4,4.84268]
[1754235676714,0.486,3463.7,3463.6,2.62864]
[1754235676715,2.3317,3463.7,3463.6,2.62864]
[1754235677006,2.3317,3463.7,3463.6,3.10954]
[1754235677607,2.6554,3463.7,3463.6,3.10954]
[1754235678001,0.57728,3464.6,3463.9,0.57738]
[1754235678205,2.1694,3464.0,3463.9,2.62858]
[1754235678607,2.6554,3464.0,3463.9,2.62858]
[1754235678806,2.6554,3464.0,3463.9,3.10948]
[1754235679107,0.5773,3464.5,3463.9,2.11568]
[1754235679306,3.2078,3464.8,3464.5,0.3832]
[1754235679307,2.6554,3464.6,3464.5,0.3832]
[1754235679704,4.684771,3464.6,3464.5,0.3832]
[1754235680302,0.6822,3464.0,3463.8,4.16081]
[1754235680509,1.0375,3464.0,3463.9,1.63479]
[1754235680807,4.684771,3463.9,3463.8,3.2078]
[1754235681017,0.679,3463.6,3463.5,0.57746]
[1754235681314,2.6554,3463.6,3463.5,1.1627]
[1754235681614,1.1319,3464.3,3463.4,3.6517]
[1754235681913,1.6179,3464.2,3463.5,0.5499]
[1754235682114,0.3585,3463.7,3463.6,2.55964]
[1754235682309,0.9463,3463.7,3463.6,2.62864]
[1754235682614,0.9463,3463.7,3463.6,3.10954]
[1754235683003,1.6253,3464.3,3464.2,1.0574]
[1754235683203,1.0375,3464.1,3464.0,0.4809]
[1754235683408,2.1113,3464.0,3463.9,4.8144]
[1754235683711,2.6554,3464.0,3463.9,1.9822]
[1754235684111,3.2078,3464.8,3463.9,0.9248]
[1754235684318,2.0676,3464.5,3464.4,1.0574]
[1754235684518,2.6554,3464.5,3464.4,1.0574]
[1754235685115,2.1694,3464.5,3464.2,1.05824]
[1754235685411,2.6554,3464.3,3464.2,2.11564]
[1754235685613,4.2453,3464.8,3464.7,1.5013]
[1754235685818,4.7313,3464.8,3464.7,1.9822]
[1754235686119,5.8632,3464.8,3464.7,1.9822]
[1754235686418,2.1694,3464.8,3464.7,2.5321]
[1754235686718,2.1694,3464.8,3464.6,0.57728]
[1754235686719,3.2078,3465.3,3465.2,1.0574]
[1754235686913,1.0375,3465.1,3465.0,0.5772]
[1754235687116,2.6554,3465.1,3465.0,1.7399]
[1754235687819,2.6554,3465.1,3465.0,1.1627]
[1754235688013,0.7138,3464.7,3464.6,0.57727]
[1754235688318,1.6179,3465.0,3464.8,0.57723]
[1754235688518,2.6554,3464.9,3464.8,1.63463]
[1754235688721,2.6554,3464.9,3464.8,2.55943]
[1754235689019,4.684771,3464.9,3464.6,0.57727]
[1754235689218,4.684771,3464.8,3464.7,0.8641]
[1754235689520,2.6554,3464.8,3464.7,0.8641]
[1754235689823,2.6554,3464.8,3464.7,1.44136]
[1754235690021,2.6554,3464.8,3464.7,1.73996]
[1754235690218,2.6554,3464.8,3464.7,2.11556]
[1754235690720,2.6554,3465.1,3465.0,1.5383]
[1754235690912,4.198771,3465.1,3465.0,2.5321]
[1754235691119,2.1694,3465.1,3465.0,2.5321]
[1754235691519,3.2078,3465.2,3465.1,2.62839]
[1754235691719,3.2078,3465.2,3465.1,3.10929]
[1754235692021,4.1541,3465.2,3465.1,3.10929]
[1754235692421,3.2078,3465.2,3465.1,3.10929]
[1754235692619,7.406571,3465.2,3465.0,0.5772]
[1754235692917,1.1319,3465.0,3464.9,2.11552]
[1754235693123,2.1694,3465.0,3464.9,3.10932]
[1754235693829,0.5878,3465.0,3464.9,3.10932]
[1754235694031,3.6938,3465.2,3464.9,3.10932]
[1754235694322,7.892571,3465.2,3465.1,3.10929]
[1754235694521,3.2078,3465.2,3465.1,2.55939]
[1754235694724,3.7956,3465.2,3465.1,3.10929]
[1754235695225,4.6982,3465.2,3465.1,3.10929]
[1754235696019,5.0535,3465.2,3465.1,3.10929]
[1754235696223,5.3772,3465.2,3465.1,3.10929]
[1754235696426,2.1694,3465.2,3465.1,3.10929]
[1754235696920,2.6554,3465.2,3465.1,3.10929]
[1754235697126,1.27,3465.2,3465.1,3.10929]
[1754235697526,4.2453,3465.9,3465.8,1.9822]
[1754235697722,6.274671,3465.9,3465.6,0.5771]
[1754235698032,3.066871,3465.7,3465.6,0.5771]
[1754235698223,4.684771,3465.7,3465.6,0.5771]
[1754235699729,4.684771,3465.7,3465.6,2.5593]
[1754235699919,3.2078,3465.9,3465.6,3.1092]
[1754235700229,4.096971,3465.8,3465.7,2.5321]
[1754235700632,2.0676,3465.8,3465.7,1.9822]
[1754235700830,2.6554,3465.8,3465.7,1.9822]
[1754235701229,4.9638,3465.9,3465.8,3.10918]
[1754235701427,7.892571,3465.9,3465.8,0.57708]
[1754235701829,7.892571,3465.9,3465.8,0.96028]
[1754235702820,7.082871,3465.9,3465.8,2.11538]
[1754235703029,2.029371,3465.9,3465.8,3.10918]
[1754235703231,2.975671,3465.9,3465.8,3.10918]
[1754235703429,4.198771,3465.9,3465.8,3.10918]
[1754235703728,0.473,3466.3,3465.8,2.55928]
[1754235703924,1.5268,3466.0,3465.9,2.4967]
[1754235704720,1.0,3466.0,3465.9,2.4967]
[1754235705525,3.8953,3466.7,3466.6,0.94484]
[1754235705835,4.627671,3466.7,3466.6,2.04004]
[1754235706037,4.627671,3466.7,3466.6,1.61634]
[1754235706234,2.1253,3466.7,3466.6,1.61634]
[1754235706436,2.5983,3466.7,3466.6,1.72204]
[1754235706637,3.082671,3466.7,3466.4,3.2078]
[1754235706928,2.5983,3466.5,3466.3,1.05549]
[1754235707130,2.5983,3466.4,3466.3,2.09489]
[1754235707333,2.5983,3466.4,3466.3,2.51859]
[1754235707634,2.5983,3466.4,3466.3,3.07369]
[1754235708433,2.5983,3466.4,3466.3,2.51859]
[1754235709131,1.0533,3466.6,3466.5,1.24846]
[1754235709338,2.029371,3466.8,3466.5,3.07366]
[1754235709536,1.2143,3466.6,3466.5,3.07366]
[1754235710131,1.7595,3466.6,3466.5,3.07366]
[1754235710439,2.1253,3466.6,3466.5,3.07366]
[1754235710832,2.5983,3467.0,3466.9,1.5179]
[1754235711138,2.5983,3467.0,3466.9,1.1451]
[1754235711331,4.627671,3467.0,3466.9,1.1451]
[1754235711735,4.627671,3467.0,3466.9,1.5179]
[1754235711943,3.2078,3467.6,3466.9,0.9022]
[1754235712237,2.1253,3467.1,3467.0,3.07358]
[1754235712438,4.154671,3467.1,3467.0,3.07358]
[1754235712633,0.8911,3467.1,3467.0,3.07358]
[1754235712839,0.5268,3467.1,3467.0,3.07358]
[1754235713133,3.2078,3468.1,3466.8,3.2078]
[1754235713134,3.2078,3468.1,3467.4,2.51841]
[1754235713335,2.1253,3467.7,3467.6,2.59497]
[1754235713729,4.154671,3467.7,3467.6,2.59497]
[1754235713939,4.627671,3467.7,3467.6,3.07347]
[1754235714137,2.5983,3467.9,3467.8,1.24333]
[1754235714439,2.5983,3468.2,3468.1,2.51829]
[1754235715331,0.8911,3468.4,3468.3,0.94455]
[1754235715537,0.3643,3468.4,3468.3,4.82385]
[1754235715739,1.8021,3468.4,3468.3,5.37895]
[1754235716334,1.0,3469.0,3468.5,0.57661]
[1754235716531,2.5983,3468.7,3468.6,1.9467]
[1754235717135,2.5983,3468.7,3468.3,23.4038]
[1754235717136,3.1253,3469.0,3468.9,1.5179]
[1754235717337,3.1253,3469.0,3468.9,2.5018]
[1754235717739,1.0,3469.0,3468.9,2.5018]
[1754235717935,1.0,3469.0,3468.9,3.07836]
[1754235719231,1.5268,3469.0,3468.9,3.07836]
[1754235719633,0.5452,3469.2,3468.8,0.5551]
[1754235719634,2.1253,3469.2,3468.8,0.5551]
[1754235719830,1.5263,3469.2,3469.1,4.0542]
[1754235720234,2.5983,3469.2,3469.1,24.2892]
[1754235720438,2.5983,3469.2,3469.1,24.5879]
[1754235720639,2.5983,3469.2,3469.1,4.3529]
[1754235720941,2.5983,3469.2,3469.1,24.5839]
[1754235721240,2.5983,3469.2,3469.1,25.3855]
[1754235721447,2.1253,3469.2,3469.1,25.9406]
[1754235721837,1.2143,3469.2,3469.1,25.9406]
[1754235722141,2.5983,3469.5,3469.4,1.0394]
[1754235722334,4.627671,3469.5,3469.4,1.9467]
[1754235723234,3.082671,3469.5,3469.1,24.01533]
[1754235723432,1.0533,3469.4,3469.3,1.0394]
[1754235723636,2.5983,3469.4,3469.3,1.5179]
[1754235723837,2.5983,3469.4,3469.3,21.7279]
[1754235724232,2.5983,3469.4,3469.3,22.1567]
[1754235725537,2.5983,3469.4,3469.3,1.5179]
[1754235725740,2.5983,3469.4,3469.3,21.7159]
[1754235726945,2.5983,3469.4,3469.1,3.2078]
[1754235727143,2.5983,3469.4,3469.3,20.196]
[1754235727845,2.5983,3469.2,3469.1,3.2078]
[1754235728047,2.5983,3469.2,3469.1,23.3968]
[1754235728250,4.627671,3469.2,3469.1,23.3968]
[1754235728447,4.627671,3469.2,3469.1,24.9147]
[1754235728945,4.627671,3469.2,3469.1,23.7647]
[1754235729247,4.627671,3469.2,3469.1,23.3968]
[1754235729546,4.627671,3469.2,3469.1,3.2078]
[1754235729754,4.627671,3469.2,3469.1,23.3898]
[1754235730447,4.627671,3469.2,3469.1,3.2078]
[1754235730649,4.627671,3469.2,3469.1,23.3808]
[1754235730845,0.57653,3469.1,3468.7,3.2078]
[1754235731151,0.57653,3469.1,3468.4,0.57664]
[1754235731152,2.5983,3468.5,3468.4,2.09454]
[1754235731348,2.5983,3468.5,3468.4,22.69134]
[1754235732351,4.627671,3468.5,3468.4,20.161]
[1754235732545,4.627671,3468.5,3468.3,3.2078]
[1754235732546,2.5983,3468.4,3468.3,3.2078]
[1754235732743,4.627671,3468.4,3468.3,23.3688]
[1754235733247,0.911,3468.4,3468.3,25.4418]
[1754235733441,2.1253,3468.6,3468.5,2.5018]
[1754235733641,1.2143,3468.6,3468.5,2.5018]
[1754235734041,2.2454,3468.5,3468.4,1.33774]
[1754235734246,4.100471,3468.5,3468.4,20.161]
[1754235734449,2.6178,3468.4,3468.3,3.78446]
[1754235734638,4.647171,3468.4,3468.3,3.2078]
[1754235735144,2.0413,3467.2,3467.1,1.0074]
[1754235735344,2.0413,3467.2,3467.1,0.3536]
[1754235735547,2.0413,3467.2,3467.1,2.0287]
[1754235735749,2.0413,3467.2,3466.7,3.2078]
[1754235735750,2.5826,3467.2,3466.7,3.2078]
[1754235736048,2.1365,3466.9,3466.8,20.7611]
[1754235736252,2.5826,3466.9,3466.8,20.7611]
[1754235736443,2.5826,3466.9,3466.8,20.7581]
[1754235737048,2.0413,3466.9,3466.8,22.7868]
[1754235738754,3.2078,3467.0,3466.9,3.15869]
[1754235738947,0.5467,3467.5,3466.8,20.205]
[1754235738948,1.0485,3467.5,3467.4,0.3536]
[1754235739147,3.2078,3467.6,3467.4,3.15861]
[1754235739449,3.2078,3467.6,3467.5,2.5818]
[1754235742250,3.7545,3468.1,3467.5,1.5605]
[1754235742455,5.2491,3468.1,3468.0,1.8207]
[1754235742657,5.2491,3468.1,3468.0,2.1175]
[1754235742858,5.2491,3468.1,3468.0,2.5818]
[1754235744463,3.5745,3468.1,3468.0,22.7608]
[1754235744763,3.2078,3468.1,3468.0,22.7608]
[1754235744962,5.2491,3468.1,3468.0,20.7321]
[1754235745161,5.7904,3468.1,3468.0,20.7321]
[1754235745660,3.2078,3468.1,3468.0,21.7534]
[1754235745867,3.2078,3468.1,3468.0,22.7608]
[1754235746167,5.7904,3468.1,3468.0,20.179]
[1754235746558,5.7904,3468.1,3468.0,20.7321]
[1754235746757,5.7904,3468.1,3468.0,0.9067]
[1754235747064,2.0413,3467.7,3467.5,0.57679]
[1754235747266,2.5826,3467.7,3467.6,20.5256]
[1754235747471,2.0413,3467.3,3467.2,3.15864]
[1754235747770,3.2078,3467.7,3467.6,2.5818]
[1754235747966,3.2078,3467.7,3467.6,22.7628]
[1754235749469,3.2078,3468.1,3468.0,3.15851]
[1754235749669,3.2078,3468.1,3468.0,23.34851]
[1754235749971,4.2563,3468.1,3468.0,3.15851]
[1754235750158,4.7024,3468.1,3468.0,23.34551]
[1754235750869,3.2078,3468.1,3468.0,23.34551]
[1754235751167,4.2563,3468.7,3468.6,1.8442]
[1754235751372,5.8256,3468.7,3468.6,1.2676]
[1754235751868,2.14591,3468.6,3468.1,0.57669]
[1754235752065,1.0485,3468.3,3468.1,0.57669]
[1754235752270,2.6178,3468.2,3468.1,1.8207]
[1754235752471,2.6178,3468.2,3468.1,20.9025]
[1754235752667,2.6178,3468.2,3468.1,21.4456]
[1754235752970,2.6178,3468.2,3468.1,21.9967]
[1754235755075,2.6178,3468.2,3468.1,22.461]
[1754235755273,2.6178,3468.2,3468.1,22.7578]
[1754235756771,2.6178,3468.2,3468.1,22.7448]
[1754235757173,2.6178,3468.2,3468.1,22.7328]
[1754235757466,1.4946,3468.5,3468.4,3.15844]
[1754235757676,1.4946,3468.5,3468.4,23.30744]
[1754235758064,1.1279,3468.5,3468.4,23.30744]
[1754235758268,4.3357,3468.7,3468.6,1.59791]
[1754235758473,4.3357,3468.7,3468.6,3.15841]
[1754235759170,3.2078,3468.7,3468.6,3.15841]
[1754235759375,1.1232,3469.6,3468.7,1.5605]
[1754235759668,1.4946,3469.1,3469.0,2.39723]
[1754235759874,0.6818,3469.1,3469.0,3.15833]
[1754235760078,1.4946,3469.1,3469.0,3.15833]
[1754235760279,2.6178,3469.1,3469.0,3.15833]
[1754235760484,2.6178,3469.1,3469.0,6.36613]
[1754235761271,2.5758703,3472.2,3470.5,3.2078]
[1754235761471,3.2078,3473.2,3472.2,0.57601]
[1754235761472,2.06172759,3473.2,3472.2,0.57601]
[1754235761669,3.2078,3473.9,3473.1,0.446]
[1754235761867,3.2078,3474.3,3473.6,2.58031302]
[1754235762067,3.2078,3474.3,3473.8,2.06405512]
[1754235762264,3.2078,3474.3,3473.7,0.7268648]
[1754235762265,0.5765,3474.2,3473.9,0.7268648]
[1754235762474,0.5765,3474.2,3474.0,0.7268648]
[1754235762676,2.09793549,3474.0,3473.4,3.2078]
[1754235762974,0.5765,3473.1,3473.0,5.27185512]
[1754235763179,3.22113549,3473.1,3473.0,3.89759384]
[1754235763678,3.22113549,3473.1,3473.0,6.44709384]
[1754235763679,2.09793549,3473.1,3473.0,6.44709384]
[1754235763977,4.76363549,3473.1,3473.0,4.30963134]
[1754235765073,4.76363549,3473.1,3473.0,5.33093605]
[1754235765574,4.76363549,3473.1,3473.0,4.30963134]
[1754235765778,3.73013549,3473.1,3473.0,5.24853134]